Cogmind - Beta 15 @@@ ROGUE MODE // 2025.08.15 @ 14:11:59 Player: lvl5hm Result: Destroyed by DAS Turret with DAS Cannon Performance ------------- Evolutions (0) 0 Regions Visited (3) 600 Robots Destroyed (20) 100 Value Destroyed (351) 351 Prototype IDs (24) 480 Alien Tech Used (0) 0 Bonus (296) 296 TOTAL SCORE: 1827 Bonus ------- Aligned with FarCom 300 Friendly Fire -4 Cogmind --------- Core Integrity 0/250 Matter 295/300 Energy 100/100 System Corruption 0% Temperature Cool (0) Movement Treading (480) Ox4 Location -10/Exiles Parts ------- > --- POWER (1) -------- (None) > --- PROPULSION (2) --- Light Treads > --- UTILITY (2) ------ Huge Storage Unit Propulsion Shielding > --- WEAPON (2) ------- (None) > --- INVENTORY (25) --- Light Ion Engine Light Ion Engine Light Ion Engine Light Treads Light Treads Light Treads Aluminum Leg Aluminum Leg Heat Sink Heat Sink Large Matter Pod (150) High-capacity Matter Pod (179) Seismic Detector Assault Rifle Assault Rifle Light Assault Rifle Light Assault Rifle Light Cannon Grenade Launcher Rocket Launcher Peak State ------------ > --- POWER ------------ Ion Engine > --- PROPULSION ------- Wheel > --- UTILITY ---------- Huge Storage Unit Experimental Sensor Array > --- WEAPON ----------- Assault Rifle Assault Rifle > --- INVENTORY -------- Light Ion Engine Light Ion Engine Light Ion Engine Light Treads Light Treads Light Treads Light Treads Aluminum Leg Aluminum Leg Heat Sink Heat Sink Large Matter Pod Seismic Detector Propulsion Shielding EM Pulse Gun Medium Laser Medium Laser Medium Laser Assault Rifle Light Assault Rifle Light Assault Rifle Light Cannon Grenade Launcher Rocket Launcher Welding Torch [Rating: 16] Favorites ----------- Power Ion Engine Engine Ion Engine Propulsion Wheel Treads Light Treads Wheel Wheel Utility Huge Storage Unit Device Heat Sink Storage Huge Storage Unit Protection Propulsion Shielding Weapon Assault Rifle Ballistic Gun Assault Rifle Launcher Grenade Launcher Special Weapon Welding Torch Build | -11 -10 -10 -10 ------- Run | Yrd Mat Min Exi Slots Evolved . | . . . . Power . | . . . . Propulsion . | . . . . Utility . | . . . . Weapon . | . . . . Parts Attached 18 | 9 6 1 2 Power 4 | 1 3 . . Engine 4 | 1 3 . . Core . | . . . . Reactor . | . . . . Propulsion 4 | 4 . . . Treads 2 | 2 . . . Leg . | . . . . Wheel 2 | 2 . . . Hover . | . . . . Flight . | . . . . Utility 6 | 2 2 1 1 Device 3 | 1 1 1 . Storage 2 | 1 1 . . Processor . | . . . . Hackware . | . . . . Protection 1 | . . . 1 Artifact . | . . . . Weapon 4 | 2 1 . 1 Energy Gun . | . . . . Energy Cannon . | . . . . Ballistic Gun 2 | 2 . . . Ballistic Cannon . | . . . . Launcher 1 | . 1 . . Special Weapon 1 | . . . 1 Impact Weapon . | . . . . Slashing Weapon . | . . . . Piercing Weapon . | . . . . Special Melee Weapon . | . . . . Unidentified Prototypes 1 | . . 1 . Parts Lost 7 | . 3 . 4 Power 2 | . 1 . 1 Propulsion 2 | . 1 . 1 Utility 1 | . 1 . . Weapon 2 | . . . 2 Highest Loss Streak 4 | . 1 . 4 To Critical Strikes . | . . . . Average Backups 19 | 1 12 24 22 Power 2 | . 1 3 3 Propulsion 4 | 1 2 6 5 Utility 4 | . 2 5 5 Weapon 7 | . 5 9 7 Tool/Special . | . . . . Unused Backups 21 | . . 3 18 Power 1 | . . . 1 Propulsion 4 | . . . 4 Utility 5 | . . . 5 Weapon 11 | . . 3 8 Tool/Special . | . . . . Average Slot Usage (%) 80 | . 89 80 76 Engine 13 | . 13 14 14 Wheel 17 | . 24 14 14 Device 3 | . 7 9 . Storage 14 | . 14 14 14 Protection 3 | . . . 5 Ballistic Gun 27 | . 27 28 26 Peak Build Rating 16 | 7 8 16 8 Average Rating 7 | 4 7 8 7 On Entrance 5 | . 7 8 8 Naked Turns . | . . . . Heaviest Build 90 | 13 90 90 90 Greatest Support 40 | 40 26 10 20 Greatest Overweight (x) 8 | 3 8 8 8 Average Overweight (x) 6 | . 2 8 7 Largest Inventory Capacity 25 | 8 25 25 25 Average Capacity 23 | 7 21 25 25 Most Carried 25 | 3 24 25 25 Average Carried 19 | 1 12 24 22 Final Capacity 25 | 8 25 25 25 Final Carried 25 | 3 24 25 20 Class Distribution -------------------- 100% | Mutant Dominant Class ---------------- Mutant | -10/Materials Mutant | -10/Mines Mutant | -10/Exiles Resources | -11 -10 -10 -10 ----------- Run | Yrd Mat Min Exi Matter Collected 824 | 338 406 54 26 Remotely . | . . . . Salvage Created 547 | 89 458 . . Parts 43 | 4 39 . . Haulers Intercepted 1 | . 1 . . Recyclers Shooed . | . . . . Parts Field Recycled . | . . . . Retrieved Matter . | . . . . Parts Self-Destructed . | . . . . Prevented . | . . . . Kills | -11 -10 -10 -10 ------- Run | Yrd Mat Min Exi Combat Hostiles Destroyed 15 | . 15 . . Guns 12 | . 12 . . AOE 3 | . 3 . . Classes Destroyed 6 | 2 4 . . Tunneler 1 | 1 . . . Hauler 1 | . 1 . . Recycler 1 | 1 . . . Watcher 2 | . 2 . . Swarmer 9 | . 9 . . Grunt 6 | . 6 . . Best Kill Streak 4 | 2 4 . . Combat Bots Only 4 | . 4 . . Max Kills in Single Turn 3 | 1 3 . . Gunslinging . | . . . . Exploded 3 | . 3 . . Melee . | . . . . Uniques/NPCs Destroyed . | . . . . Combat | -11 -10 -10 -10 -------- Run | Yrd Mat Min Exi Hostile Shots Fired 63 | . 53 . 10 Missed 11 | . 9 . 2 Hits 52 | . 44 . 8 Projectile 52 | . 44 . 8 Damage Taken 806 | . 408 . 398 Core 268 | . 43 . 225 Absorbed by Shields . | . . . . Redirected to Shielding 30 | . . . 30 Core Remaining (%) 100 | 100 . . . Volleys Fired 47 | 8 37 1 1 Largest 2 | 2 2 2 1 Hottest 40 | 40 40 40 20 Shots Fired 91 | 16 72 2 1 Gun 88 | 16 70 2 . Cannon . | . . . . Launcher 2 | . 2 . . Special 1 | . . . 1 Kinetic 88 | 16 70 2 . Thermal 1 | . . . 1 Explosive 2 | . 2 . . Electromagnetic . | . . . . Robot Hit Streak 7 | 4 7 1 2 Robot Miss Streak 4 | 2 4 1 . Penetration Max . | . . . . Secondary Targets 1 | . 1 . . Max Gunslinging Chain 1 | . 1 . . Shots Hit Robots 51 | 10 39 1 1 Core Hits 26 | 3 23 . . Critical Kills 1 | . 1 . . Critical Parts Destroyed . | . . . . Critical Strikes 1 | . 1 . . Destroy 1 | . 1 . . Melee Attacks . | . . . . Impact . | . . . . Slashing . | . . . . Piercing . | . . . . Sneak Attacks . | . . . . Combat Hostiles . | . . . . Follow-up Attacks . | . . . . Damage Inflicted 750 | 118 616 12 4 Guns 625 | 118 495 12 . Cannons . | . . . . Explosions 121 | . 121 . . Melee . | . . . . Ramming . | . . . . Kinetic 625 | 118 495 12 . Thermal 4 | . . . 4 Explosive 121 | . 121 . . Electromagnetic . | . . . . Impact . | . . . . Slashing . | . . . . Piercing . | . . . . Highest Corruption . | . . . . Average Corruption . | . . . . Corruption Purged . | . . . . Corruption Blocked . | . . . . Overload Shots . | . . . . Overflow Damage . | . . . . Projectiles . | . . . . Explosions . | . . . . Melee . | . . . . Knockbacks . | . . . . Impact . | . . . . Kinetic . | . . . . Secondary . | . . . . Self-Inflicted Damage . | . . . . Shots . | . . . . Rammed . | . . . . Targets Rammed . | . . . . Kicked . | . . . . Crushed . | . . . . Highest Temperature 1 | . 1 . . Average Temperature 1 | . 1 . . Received Heat Transfer 102 | . 102 . . Siege Activations . | . . . . Martial Activations . | . . . . Shielding Activations . | . . . . Robots Disrupted . | . . . . Combat Hostiles . | . . . . Robots Corrupted . | . . . . Combat Hostiles . | . . . . Parts Fried . | . . . . Impact Corruptions . | . . . . Robots Melted . | . . . . Combat Hostiles . | . . . . Parts Melted . | . . . . Heat Transferred 25 | . . . 25 Parts Sabotaged . | . . . . Parts Stolen . | . . . . Parts Stripped . | . . . . Power Chain Reactions . | . . . . Alert | -11 -10 -10 -10 ------- Run | Yrd Mat Min Exi Maximum Alert Level 1 | . 1 . . Low Security (%) 72 | 100 51 100 . Level 1 27 | . 48 . . Level 2 . | . . . . Level 3 . | . . . . Level 4 . | . . . . Level 5 . | . . . . High Security . | . . . . Max Security . | . . . . Peak Influence 267 | . 267 77 . Initial 77 | . . 77 . Average 84 | . 135 16 . Influence Increases 467 | 10 457 . . Destroy 0b10 Robot/C 300 | . 300 . . Destroy 0b10 Robot/NC 25 | 10 15 . . Destroy Leader 66 | . 66 . . Successful Hack 28 | . 28 . . Disable Machine 15 | . 15 . . Destroy Structure 18 | . 18 . . Lose Combat Pursuer 15 | . 15 . . Influence Decreases 467 | 10 258 199 . Entered New Map 122 | . . 122 . Time Decay 315 | 10 228 77 . Lost Part 30 | . 30 . . Squads Dispatched 3 | . 3 . . Investigation . | . . . . Extermination . | . . . . Reinforcement 3 | . 3 . . Assault . | . . . . Garrison . | . . . . Intercept . | . . . . Searches Triggered . | . . . . Construction Impeded . | . . . . Haulers Reinforced . | . . . . Active Scanning Responses . | . . . . Cargo Convoy Interrupts . | . . . . Stealth | -11 -10 -10 -10 --------- Run | Yrd Mat Min Exi Distress Signals 1 | . 1 . . Communications Jammed . | . . . . Distress Signals . | . . . . Times Spotted 30 | . 28 . 2 Peak Tracking Total 12 | . 6 . 12 Tactical Retreats 1 | . 1 . . Traps | -11 -10 -10 -10 ------- Run | Yrd Mat Min Exi Traps Triggered . | . . . . Indirectly . | . . . . Trap Hack Attempts . | . . . . Triggered . | . . . . Disarmed . | . . . . Reprogrammed . | . . . . Reused . | . . . . Traps Extracted . | . . . . Installed . | . . . . Triggered . | . . . . Machines | -11 -10 -10 -10 ---------- Run | Yrd Mat Min Exi Machines Disabled 1 | . 1 . . Max in Single Turn 1 | . 1 . . Machines Repaired . | . . . . Machines Dismantled . | . . . . Machines Sabotaged . | . . . . Overloaded Fab Kills . | . . . . Hacking | -11 -10 -10 -10 --------- Run | Yrd Mat Min Exi Machines Accessed 3 | . 2 . 1 Terminals 2 | . 2 . . Fabricators . | . . . . Repair Stations . | . . . . Recycling Units . | . . . . Scanalyzers . | . . . . Garrison Access . | . . . . Total Hacks 6 | . 5 . 1 Successful 3 | . 2 . 1 Failed 3 | . 3 . . Catastrophic . | . . . . Database Lockouts . | . . . . Manual 5 | . 4 . 1 Terminals 5 | . 5 . . Fabricators . | . . . . Repair Stations . | . . . . Recycling Units . | . . . . Scanalyzers . | . . . . Garrison Access . | . . . . Terminal Hacks 2 | . 1 . 1 Robot Analysis 1 | . 1 . . Proto ID Catalog 1 | . . . 1 Fabricator Hacks . | . . . . Repair Station Hacks . | . . . . Recycling Unit Hacks . | . . . . Scanalyzer . | . . . . Garrison Access Hacks . | . . . . Unauthorized Hacks 1 | . 1 . . Terminals 1 | . 1 . . Botnet 1 | . 1 . . Fabricators . | . . . . Repair Stations . | . . . . Recycling Units . | . . . . Scanalyzers . | . . . . Garrison Access . | . . . . Data Cores Recovered . | . . . . Used . | . . . . Hacking Detections 2 | . 2 . . Full Trace Events . | . . . . Feedback Events . | . . . . Feedback Blocked . | . . . . Robot Schematics Acquired . | . . . . Robots Built . | . . . . Authchips . | . . . . Time . | . . . . Total Robot Build Rating . | . . . . Part Schematics Acquired . | . . . . Parts Built . | . . . . Authchips . | . . . . Time . | . . . . Total Part Build Rating . | . . . . Parts Repaired . | . . . . Time . | . . . . Parts Recycled . | . . . . Recycled Matter . | . . . . Retrieved Matter . | . . . . Retrieved Components . | . . . . Parts Scanalyzed . | . . . . Part Schematics Acquired . | . . . . Parts Damaged . | . . . . Bothacking | -11 -10 -10 -10 ------------ Run | Yrd Mat Min Exi Used RIF Installer . | . . . . Robots Hacked . | . . . . Non-combat . | . . . . Combat . | . . . . Robot Hacks Applied . | . . . . Relay Couplers Released . | . . . . Fabnet Peak Effective % . | . . . . Robots Rewired . | . . . . Allies Hacked . | . . . . Hacks Repelled . | . . . . Allies | -11 -10 -10 -10 -------- Run | Yrd Mat Min Exi Total Allies . | . . . . Largest Group . | . . . . Highest-Rated Group . | . . . . Highest-Rated Ally . | . . . . Total Orders . | . . . . Ally Attacks . | . . . . Total Damage . | . . . . Kills . | . . . . Allies Corrupted . | . . . . Allies Melted . | . . . . Intel | -11 -10 -10 -10 ------- Run | Yrd Mat Min Exi Active Infowar (turns) 263 | 10 250 3 . Sensors 3 | . . 3 . Seismic 260 | 10 250 . . Robot Analysis Total 1 | . 1 . . Derelict Logs Recovered 1 | . . 1 . Drone Launches . | . . . . Drone Recoveries . | . . . . Exploration | -11 -10 -10 -10 ------------- Run | Yrd Mat Min Exi Turns Passed 2567 | 97 692 403 1375 Spaces Moved 1332 | 51 403 197 681 Core 4 | 4 . . . Treads 18 | 16 . . 2 Legs . | . . . . Wheels 1310 | 31 403 197 679 Hover . | . . . . Flight . | . . . . Fastest Speed 50 | 50 90 200 200 Average Speed 175 | 112 128 200 200 Slowest Speed 480 | 200 200 200 480 Overloaded Moves . | . . . . Propulsion Burnouts . | . . . . Robots Hopped . | . . . . Potential Cave-ins . | . . . . Cave-ins Triggered . | . . . . Exploration Rate (%) 49 | 5 58 43 90 Regions Visited 3 Branch Regions 2 Pre-discovered Areas . | . . . . Known Exits Taken . | . . . . Unknown Exits Taken 3 | 1 1 1 . Scrap Searched 2 | . . 2 . Spaces Dug . | . . . . Terrain Destroyed 16 | . 16 . . Melee . | . . . . Projectile . | . . . . AOE 16 | . 16 . . Terrain Rammed . | . . . . Walls Destroyed . | . . . . Machines Disabled . | . . . . Actions | -11 -10 -10 -10 --------- Run | Yrd Mat Min Exi Total 1471 | 70 500 208 693 Wait 32 | . 32 . . Move 1329 | 50 402 196 681 Hop . | . . . . Pick Up 25 | 1 19 4 1 Fast Attach 13 | 9 2 1 1 Attach 2 | . . . 2 Detach 4 | 2 . 1 1 Swap 7 | . 7 . . Drop 11 | . 1 5 5 Fire 47 | 8 37 1 1 Melee . | . . . . Ram . | . . . . Kick . | . . . . Crush . | . . . . Escape Stasis . | . . . . Rewire 1 | . . . 1 Trap . | . . . . Miscellaneous . | . . . . Route ------- -11/Scrapyard -10/Materials (discovered 3 exits: [*Mat] / [*Min] / [*Sub]) -10/Mines (discovered 2 exits: [*Mat] / *Exi) -10/Exiles (discovered 2 exits: [*Min x2]) History --------- Turn | Location | Event 6 | -11/Scrapyard | Discovered new exit (range 16) 98 | -11/Scrapyard | Entered Materials 99 | -10/Materials | Met a group of wandering Federalists 144 | -10/Materials | Discovered new exit (range 8) 255 | -10/Materials | Discovered new exit (range 15) 309 | -10/Materials | Build established: Mutant 353 | -10/Materials | Discovered new exit (range 8) 790 | -10/Materials | Entered Mines 915 | -10/Mines | Learned Materials terminal intel 948 | -10/Mines | Received a Rocket Launcher from a helpful Derelict 1014 | -10/Mines | Discovered new exit (range 10) 1068 | -10/Mines | Found a damaged Exp. Sensor Array with a note attached 1073 | -10/Mines | Found Prototype Device 1073 | -10/Mines | Identified Exp. Sensor Array 1159 | -10/Mines | Deemed a non-threat by the Exiles lab entrance 1185 | -10/Mines | Discovered new exit (range 5) 1193 | -10/Mines | Entered Exiles 1227 | -10/Exiles | Discovered new exit (range 15) 1253 | -10/Exiles | Met 8R-AWN 1285 | -10/Exiles | Met EX-HEX 1343 | -10/Exiles | Met EX-BIN 1371 | -10/Exiles | Aligned with FarCom system 1373 | -10/Exiles | Given EX-Vault access code 1421 | -10/Exiles | Opened EX-Vault 1471 | -10/Exiles | Warned to stay clear of 0b10 Research branches 1583 | -10/Exiles | Met EX-DEC 1660 | -10/Exiles | Visited The Gauntlet 1961 | -10/Exiles | Discovered new exit (range 14) 2554 | -10/Exiles | Attacked by the Exiles 2563 | -10/Exiles | Core integrity fell below 50% 2567 | -10/Exiles | Core integrity fell below 20% 2568 | -10/Exiles | Destroyed by DAS Turret with DAS Cannon Last Messages --------------- 5L-KAT: Stay back! I'm calibrating the thromdimbulator! 01961_ EXIT=FOUND 02001_ Dropped Med. Laser. 02003_ Dropped Exp. Sensor Array. 02004_ Dropped Welding Torch. 02287_ Extracted 26 matter. 02289_ Acquired Hcp. Matter Pod. 02475_ Acquired Welding Torch. 02552_ A-02 Transporter is unpowered. 02554_ EXILES: Hostile robot within lab perimeter. Defensive protocols time, folks! 02556_ EX-DEC: "Let's see what this bad boy can do..." 02556_ Assault Rifle destroyed. 02558_ Welding Torch destroyed. 02559_ Machine disabled. 02560_ Wheel destroyed. 02568_ EX-BIN: "I just want to science!" 02568_ Ion Engine destroyed. Map ----- +----------------------------------------------------+ | # ""#?????????????????????????#" """# | | " ""#?????????????????????????#" """# | | " ""#?????????????????????????## """" | | " #??????????????" ?????????# """# | | #?????????????"" ??????????#" "X" """" | | ##????????????"" "?????????#" """ # | | "#???????????? ""?????????#" """""""""# | | ###???????????" "?????????##" ########### | | ##??????????# #????????##"" #?????????? | | #"" ######???### ###?######"" #?????????? | | ##" """#####X# #"###""""""" ##????????? | | ?#" """""" " "" ##???##### | | ?#"# "" """ " #####"""" | | ?#### " " " "" | | ????### "" | | ??????### " | | ????????## | | ?????????## | | ??????????##" | | ???????????#""" """""" | | ??????????##" ######""" | | ??????????#"" ""##????#####""" | | ?????????##""" c """##?????????##""" | | ?????????#""" """##???????????#"""" | | ?????????#""" ""#???????????##"" | | ?????????#"" @########??####"""" | | ?????????#""" ## ####""" | | ?????????#"" % """ | | ?????????##""t % | | ??????????#"""" % | | ??????????## " | | ???????????#" " "" " | | ???????????#"""" ""## ##""" " " "" | | ???????????#"" ""#### ######""" """ | | ???????????#" """"##??# #????###""""# | | ???????????#""" """#??## ####???###### | | ???????????## ""##??# "!#????????? | | ????????????#"" """##???#" !#????????? | | ????????????##""" ##????#" "#????????? | | ?????????????##"""" ##?????#!!""!"#????????? | | ??????????????### #??????########????????? | | ????????????????##### ##??????????????????????? | | ????????????????????## #???????????????????????? | | ?????????????????????# #???????????????????????? | | ?????????????????????# #???????????????????????? | | ?????????????????????# #???????????????????????? | | ???????????#####?????# #???????????????????????? | | ?""""""???#"""""""???# #???????????????????????? | | """""""#??#"""""""#??# #???????????????????????? | | """"" "#??#" """"#??# #???????????????????????? | +----------------------------------------------------+ Best States ------------- Heat Dissipation 35 Energy Generation 10 Energy Capacity 250 Matter Stores 300 Matter Capacity 300 Sight Range 16 Terrain Scan Density 10 Propulsion Shielding 33 Evasion (%) 42 Recoil Reduction 2 Item Schematics ----------------- None Robot Schematics ------------------ None Fabricated ------------ Nothing Repaired ---------- Nothing Alien Tech Used ----------------- None Achievements -------------- None Challenges ------------ None Game ------ Seed AlloyIonMapper Manual? 0 Play Time 00:12:53 Cumulative 131.2 hours Start 2025.08.15 @ 13:47:02 End 2025.08.15 @ 14:11:59 Sessions 1 Manual Loads 0 Difficulty Rogue Special Mode None Game No. 117 Rogue 117 Adventurer 0 Explorer 0 Win Type - Total 4 Types 4/0/0/0/0/0/0/0/0/0 Lore% 33 Gallery% 54 Achievement% 51 Wizard Run 0 Options --------- Layout 2 ASCII 0 Keyboard 1 Movement Arrows Keybinds 0 Fullscreen 1 Font 32/Tamsyn Map View 50x44 Zoom Use 0% Tactical HUD 1 Map Filters NONE Filters NONE Steam 1 RUN: 54f708ae-c013-419d-805c-8ed07690f824